bitfinex/quotes_BTCUSD_20241009
["timestamp","ask_amount","ask_price","bid_price","bid_amount"]
[1728453003002,0.09855902,62526.0,62525.0,0.36645248]
[1728453003244,0.09955902,62526.0,62525.0,0.36645248]
[1728453004083,0.09855902,62526.0,62525.0,0.36645248]
[1728453004540,0.09855902,62526.0,62525.0,0.330278]
[1728453005400,0.32354379,62526.0,62525.0,0.001642]
[1728453005606,0.63889773,62526.0,62525.0,0.001642]
[1728453005841,0.66287666,62526.0,62525.0,0.004642]
[1728453006078,0.54298201,62526.0,62525.0,0.004642]
[1728453006285,0.66288018,62526.0,62525.0,0.004642]
[1728453006709,0.54298201,62526.0,62525.0,0.004642]
[1728453007164,0.54298201,62526.0,62525.0,0.001642]
[1728453007393,0.54698201,62526.0,62525.0,0.001642]
[1728453008464,0.66686024,62526.0,62525.0,0.001642]
[1728453008873,0.64288226,62526.0,62525.0,0.001642]
[1728453010611,0.48294926,62526.0,62525.0,0.001642]
[1728453010842,0.48294926,62526.0,62525.0,0.36554986]
[1728453010843,0.05460271,62526.0,62525.0,0.36554986]
[1728453011085,0.10255028,62526.0,62525.0,0.36554986]
[1728453011534,0.05460271,62526.0,62525.0,0.36554986]
[1728453013492,0.10255028,62526.0,62525.0,0.36554986]
[1728453013924,0.05460271,62526.0,62525.0,0.36554986]
[1728453015934,0.1025563,62526.0,62525.0,0.36554986]
[1728453016085,0.1025563,62526.0,62525.0,0.45750961]
[1728453017315,0.10255646,62526.0,62525.0,0.45750961]
[1728453018796,0.10255063,62526.0,62525.0,0.45750961]
[1728453019445,0.05459688,62526.0,62525.0,0.45750961]
[1728453019722,0.03761005,62526.0,62525.0,0.45750961]
[1728453019906,0.05259764,62526.0,62525.0,0.45750961]
[1728453020317,0.04072902,62526.0,62525.0,0.45750961]
[1728453020513,0.05259882,62526.0,62525.0,0.45750961]
[1728453020686,0.05359882,62526.0,62525.0,0.45750961]
[1728453021116,0.04172902,62526.0,62525.0,0.45750961]
[1728453022199,0.02574143,62526.0,62525.0,0.45750961]
[1728453022440,0.04073094,62526.0,62525.0,0.45750961]
[1728453022659,0.04173094,62526.0,62525.0,0.45750961]
[1728453023242,0.04173094,62526.0,62525.0,0.46050961]
[1728453023503,0.04173094,62526.0,62525.0,0.46250961]
[1728453023725,0.04073094,62526.0,62525.0,0.45750961]
[1728453024147,0.04073094,62526.0,62525.0,0.46850961]
[1728453024352,0.04073094,62526.0,62525.0,0.46250961]
[1728453024739,0.04173094,62526.0,62525.0,0.46950961]
[1728453025617,0.04173094,62526.0,62525.0,0.46450961]
[1728453025820,0.04273094,62526.0,62525.0,0.47050961]
[1728453026284,0.001,62526.0,62525.0,0.47050961]
[1728453026287,0.000821,62535.0,62534.0,0.159913]
[1728453029078,0.000821,62539.0,62538.0,0.45843361]
[1728453029314,0.000821,62539.0,62538.0,0.46143361]
[1728453031183,0.000821,62539.0,62538.0,0.46643361]
[1728453033530,0.000821,62539.0,62538.0,0.346302]
[1728453033796,0.32990161,62558.0,62557.0,0.12013161]
[1728453034065,0.48531505,62558.0,62557.0,0.12013161]
[1728453034310,0.49958626,62558.0,62557.0,0.12013161]
[1728453035030,0.50058626,62558.0,62557.0,0.12113161]
[1728453035257,0.50058626,62558.0,62557.0,0.12213161]
[1728453035258,0.50758626,62558.0,62557.0,0.12213161]
[1728453035498,0.66743726,62558.0,62557.0,0.12213161]
[1728453035742,0.50758626,62558.0,62557.0,0.12213161]
[1728453035985,0.50058626,62558.0,62557.0,0.12113161]
[1728453036228,0.52564472,62558.0,62557.0,0.12113161]
[1728453036460,0.53264472,62558.0,62557.0,0.12213161]
[1728453036911,0.50758626,62558.0,62557.0,0.12213161]
[1728453037382,0.50658626,62558.0,62557.0,0.12113161]
[1728453037622,0.66643726,62558.0,62557.0,0.12113161]
[1728453037877,0.65943726,62558.0,62557.0,0.12013161]
[1728453038118,0.67436124,62558.0,62557.0,0.12013161]
[1728453038346,0.52051024,62558.0,62557.0,0.12013161]
[1728453039525,0.52133124,62558.0,62557.0,0.12013161]
[1728453039763,0.68118224,62558.0,62557.0,0.12013161]
[1728453040001,0.52133124,62558.0,62557.0,0.12013161]
[1728453040231,0.54638888,62558.0,62557.0,0.12013161]
[1728453040473,0.31648727,62558.0,62557.0,0.12013161]
[1728453040701,0.47633827,62558.0,62557.0,0.12013161]
[1728453041180,0.31648727,62558.0,62557.0,0.12013161]
[1728453041939,0.30156329,62558.0,62557.0,0.12013161]
[1728453042170,0.47633717,62558.0,62557.0,0.12013161]
[1728453042413,0.31648617,62558.0,62554.0,0.2399712]
[1728453042647,0.17033632,62557.0,62554.0,0.2399712]
[1728453042888,0.01492288,62556.0,62555.0,0.159858]
[1728453043121,0.18462359,62556.0,62554.0,0.3998322]
[1728453043359,0.01492288,62555.0,62554.0,0.3998322]
[1728453043591,0.02920455,62555.0,62554.0,0.3998322]
[1728453043826,0.02920455,62555.0,62554.0,0.51996381]
[1728453045598,0.01728167,62555.0,62554.0,0.51996381]
[1728453046066,0.02920816,62555.0,62554.0,0.51996381]
[1728453046749,0.03120816,62555.0,62554.0,0.51996381]
[1728453047681,0.02920816,62555.0,62554.0,0.51996381]
[1728453048151,0.03020816,62555.0,62554.0,0.51996381]
[1728453048598,0.01592649,62555.0,62554.0,0.51996381]
[1728453049049,0.03021031,62555.0,62554.0,0.61326381]
[1728453049306,0.01592649,62555.0,62554.0,0.61326381]
[1728453051433,0.01592649,62555.0,62554.0,0.37329261]
[1728453051962,0.01674749,62555.0,62554.0,0.37329261]
[1728453058014,0.01574749,62555.0,62554.0,0.37329261]
[1728453058388,0.01674749,62555.0,62554.0,0.37329261]
[1728453058592,0.01574749,62555.0,62554.0,0.37329261]
[1728453058799,0.000821,62555.0,62554.0,0.37329261]
[1728453059010,0.01581302,62555.0,62554.0,0.37329261]
[1728453059223,0.01581302,62555.0,62548.0,0.0959]
[1728453059430,0.01581302,62555.0,62554.0,0.12013161]
[1728453059431,0.000821,62555.0,62554.0,0.12013161]
[1728453059631,0.000821,62555.0,62554.0,0.12113161]
[1728453059632,0.01639787,62555.0,62554.0,0.12113161]
[1728453060392,0.01639787,62555.0,62554.0,0.12013161]
[1728453060815,0.02039787,62555.0,62554.0,0.12013161]
[1728453061040,0.01981679,62555.0,62554.0,0.27999261]
[1728453061270,0.01581679,62555.0,62554.0,0.27999261]
[1728453061503,0.01581679,62555.0,62554.0,0.12013161]
[1728453061728,0.01881679,62555.0,62554.0,0.27999261]
[1728453062412,0.01881679,62555.0,62554.0,0.12013161]
[1728453063578,0.01581679,62555.0,62554.0,0.12013161]
[1728453063793,0.01881679,62555.0,62554.0,0.12013161]
[1728453064045,0.17867579,62555.0,62554.0,0.12013161]
[1728453064282,0.17567579,62555.0,62554.0,0.12013161]
[1728453064512,0.17567961,62555.0,62554.0,0.12013161]
[1728453065006,0.17867961,62555.0,62554.0,0.12013161]
[1728453065227,0.01882061,62555.0,62554.0,0.12013161]
[1728453068035,0.01882061,62555.0,62554.0,0.27999261]
[1728453068258,0.01882061,62555.0,62554.0,0.12013161]
[1728453068683,0.03312823,62555.0,62554.0,0.27999261]
[1728453069329,0.03312823,62555.0,62554.0,0.45569261]
[1728453069765,0.01812862,62555.0,62554.0,0.45569261]
[1728453070657,0.06594238,62555.0,62554.0,0.45569261]
[1728453071589,0.08684926,62555.0,62554.0,0.45569261]
[1728453071813,0.08884926,62555.0,62554.0,0.45569261]
[1728453072529,0.19422833,62555.0,62554.0,0.45569261]
[1728453072764,0.19422833,62555.0,62554.0,0.45669261]
[1728453073026,0.19422833,62555.0,62554.0,0.45569261]
[1728453073395,0.19222833,62555.0,62554.0,0.46069261]
[1728453073623,0.28785586,62555.0,62554.0,0.46069261]
[1728453073864,0.28785586,62555.0,62554.0,0.46469261]
[1728453074100,0.08710066,62555.0,62554.0,0.46469261]
[1728453074329,0.01512862,62555.0,62554.0,0.46469261]
[1728453074799,0.08710066,62555.0,62554.0,0.46469261]
[1728453076141,0.08711439,62555.0,62554.0,0.46469261]
[1728453083037,0.19230451,62555.0,62554.0,0.46469261]
[1728453083531,0.19230451,62555.0,62554.0,0.30483161]
[1728453083753,0.28828554,62555.0,62554.0,0.21853161]
[1728453083986,0.28828554,62555.0,62554.0,0.21453161]
[1728453084203,0.28828554,62555.0,62554.0,0.21953161]
[1728453084436,0.28828554,62555.0,62554.0,0.21653161]
[1728453084679,0.28828554,62555.0,62554.0,0.37439261]
[1728453084952,0.28828554,62555.0,62554.0,0.27999261]
[1728453086171,0.29028554,62555.0,62554.0,0.12013161]
[1728453086688,0.19230451,62555.0,62554.0,0.12013161]
[1728453086933,0.31228079,62555.0,62554.0,0.27999261]
[1728453087136,0.19430451,62555.0,62554.0,0.12013161]
[1728453087863,0.29030542,62555.0,62554.0,0.12013161]
[1728453088369,0.19430451,62555.0,62554.0,0.12013161]
[1728453088604,0.31428079,62555.0,62554.0,0.12013161]
[1728453089314,0.31432581,62555.0,62554.0,0.12013161]
[1728453090088,0.1943219,62555.0,62554.0,0.12013161]
[1728453090560,0.31432581,62555.0,62554.0,0.12013161]
[1728453091038,0.31432581,62555.0,62554.0,0.27999261]
[1728453091039,0.19432569,62555.0,62554.0,0.27999261]
[1728453091310,0.19432569,62555.0,62554.0,0.12013161]
[1728453091782,0.31433217,62555.0,62554.0,0.12013161]
[1728453092022,0.19432569,62555.0,62554.0,0.12013161]
[1728453092485,0.31433217,62555.0,62554.0,0.12013161]
[1728453092729,0.19432569,62555.0,62554.0,0.12013161]
[1728453092976,0.31433217,62555.0,62554.0,0.12013161]
[1728453093209,0.354639,62555.0,62554.0,0.12013161]
[1728453093917,0.19478,62555.0,62554.0,0.12013161]
[1728453094164,0.19478699,62555.0,62554.0,0.12013161]
[1728453094634,0.19433268,62555.0,62554.0,0.12013161]
[1728453096473,0.21939042,62555.0,62554.0,0.12013161]
[1728453096907,0.37480386,62555.0,62554.0,0.12013161]
[1728453097563,0.53466286,62555.0,62554.0,0.12013161]
[1728453097960,0.37480386,62555.0,62554.0,0.12013161]
[1728453098956,0.37478642,62555.0,62554.0,0.12013161]
[1728453106728,0.37478642,62555.0,62554.0,0.27999261]
[1728453107363,0.37478642,62555.0,62554.0,0.12013161]
[1728453107925,0.37478642,62555.0,62554.0,0.37669261]
[1728453108148,0.37478642,62555.0,62554.0,0.21683161]
[1728453108594,0.37478642,62555.0,62554.0,0.37669261]
[1728453109276,0.37478642,62555.0,62554.0,0.21683161]
[1728453111269,0.49477185,62555.0,62554.0,0.21683161]
[1728453111920,0.4947713,62555.0,62554.0,0.21683161]
[1728453112354,0.4947713,62555.0,62554.0,0.37669261]
[1728453113329,0.4947713,62555.0,62554.0,0.21683161]
[1728453114230,0.33935786,62555.0,62554.0,0.37669261]
[1728453115405,0.33735786,62555.0,62554.0,0.37669261]
[1728453116588,0.33735786,62555.0,62554.0,0.45999261]
[1728453118800,0.33733095,62555.0,62554.0,0.45999261]
[1728453123443,0.33733095,62555.0,62554.0,0.12113161]
[1728453123670,0.21783274,62555.0,62554.0,0.12113161]
[1728453124133,0.21783274,62555.0,62554.0,0.001]
[1728453124134,0.53310518,62555.0,62554.0,0.001]
[1728453124802,0.53410518,62555.0,62554.0,0.001]
[1728453125427,0.58052463,62555.0,62554.0,0.001]
[1728453125630,0.53410518,62555.0,62554.0,0.001]
[1728453125833,0.159864,62553.0,62552.0,0.12013161]
[1728453126041,0.63640661,62553.0,62552.0,0.12013161]
[1728453126244,0.65101213,62553.0,62552.0,0.12013161]
[1728453127501,0.50704488,62553.0,62552.0,0.12013161]
[1728453127977,0.51404488,62553.0,62552.0,0.12113161]
[1728453131948,0.51393203,62553.0,62552.0,0.12113161]
[1728453136820,0.51388755,62553.0,62552.0,0.12113161]
[1728453141686,0.17701896,62553.0,62552.0,0.12113161]
[1728453141919,0.17701896,62553.0,62552.0,0.21513161]
[1728453141920,0.35400559,62553.0,62552.0,0.21513161]
[1728453142160,0.19859215,62553.0,62552.0,0.46861077]
[1728453142362,0.31845247,62553.0,62552.0,0.46861077]
[1728453142584,0.19859215,62553.0,62552.0,0.46861077]
[1728453142797,0.19859215,62553.0,62552.0,0.45649761]
[1728453144149,0.09352092,62553.0,62552.0,0.45649761]
[1728453144387,0.02160552,62553.0,62552.0,0.45649761]
[1728453144831,0.06954781,62553.0,62552.0,0.45649761]
[1728453145461,0.06254781,62553.0,62552.0,0.45549761]
[1728453146017,0.06336881,62553.0,62552.0,0.45549761]
[1728453146234,0.06336881,62553.0,62552.0,0.45649761]
[1728453151824,0.01542652,62553.0,62552.0,0.45649761]
[1728453152280,0.000821,62553.0,62552.0,0.45649761]
[1728453152975,0.000821,62553.0,62552.0,0.45549761]
[1728453153877,0.000821,62553.0,62552.0,0.46049761]
[1728453154173,0.000821,62553.0,62552.0,0.45549761]
[1728453154417,0.000821,62553.0,62552.0,0.45949761]
[1728453154896,0.000821,62553.0,62552.0,0.45549761]
[1728453155097,0.000821,62553.0,62552.0,0.45949761]
[1728453155525,0.000821,62553.0,62552.0,0.46449761]
[1728453155968,0.000821,62553.0,62552.0,0.45949761]
[1728453156183,0.000821,62553.0,62552.0,0.46449761]
[1728453157582,0.000821,62553.0,62552.0,0.45949761]
[1728453157818,0.000821,62553.0,62552.0,0.45549761]
[1728453158048,0.000821,62553.0,62552.0,0.45749761]
[1728453158507,0.000821,62553.0,62552.0,0.45549761]
[1728453158729,0.000821,62553.0,62552.0,0.45749761]
[1728453158953,0.000821,62553.0,62552.0,0.46049761]
[1728453159664,0.000821,62553.0,62552.0,0.45749761]
[1728453160103,0.000821,62553.0,62552.0,0.45849761]
[1728453161066,0.000821,62553.0,62552.0,0.46049761]
[1728453162020,0.000821,62553.0,62552.0,0.45849761]
[1728453163235,0.000821,62553.0,62552.0,0.46049761]
[1728453163673,0.000821,62553.0,62552.0,0.45849761]
[1728453164032,0.000821,62553.0,62552.0,0.46049761]
[1728453165003,0.000821,62553.0,62552.0,0.46149761]
[1728453165205,0.000821,62553.0,62552.0,0.45849761]
[1728453165694,0.000821,62553.0,62552.0,0.46249761]
[1728453166615,0.02587719,62553.0,62552.0,0.46249761]
[1728453167309,0.000821,62553.0,62552.0,0.46249761]
[1728453168260,0.000821,62553.0,62552.0,0.45549761]
[1728453168752,0.000821,62553.0,62552.0,0.45949761]
[1728453168991,0.000821,62553.0,62552.0,0.339366]
[1728453169226,0.000821,62553.0,62552.0,0.45949761]
[1728453169466,0.01387231,62553.0,62552.0,0.45949761]
[1728453169706,0.000821,62553.0,62552.0,0.45949761]
[1728453169945,0.000821,62553.0,62552.0,0.45549761]
[1728453170171,0.000821,62553.0,62552.0,0.45949761]
[1728453170409,0.03892894,62553.0,62552.0,0.45949761]
[1728453170646,0.02587763,62553.0,62552.0,0.45649761]
[1728453170885,0.03892894,62553.0,62552.0,0.45649761]
[1728453171107,0.03992894,62553.0,62552.0,0.45649761]
[1728453171607,0.03992894,62553.0,62552.0,0.45549761]
[1728453172767,0.03892894,62553.0,62552.0,0.45549761]
[1728453173017,0.03892894,62553.0,62552.0,0.45849761]
[1728453176577,0.03892894,62553.0,62552.0,0.45749761]
[1728453177001,0.03892894,62553.0,62552.0,0.45849761]
[1728453177436,0.03892894,62553.0,62552.0,0.45749761]
[1728453177686,0.04092894,62553.0,62552.0,0.45749761]
[1728453178319,0.04092894,62553.0,62552.0,0.45549761]
[1728453178804,0.04092894,62553.0,62552.0,0.45749761]
[1728453179037,0.03892894,62553.0,62552.0,0.45549761]
[1728453179261,0.03992894,62553.0,62552.0,0.45549761]
[1728453181556,0.08787373,62553.0,62552.0,0.45549761]
[1728453182527,0.08687373,62553.0,62552.0,0.45549761]
[1728453183139,0.08787373,62553.0,62552.0,0.45549761]
[1728453183263,0.08687373,62553.0,62552.0,0.45549761]
[1728453183493,0.03892894,62553.0,62552.0,0.45549761]
[1728453183716,0.02687763,62553.0,62552.0,0.45549761]
[1728453184237,0.18229107,62553.0,62552.0,0.21413161]
[1728453184444,0.41407225,62553.0,62552.0,0.12013161]
[1728453184646,0.35519217,62553.0,62552.0,0.12013161]
[1728453185061,0.33013554,62553.0,62552.0,0.12113161]
[1728453185270,0.17027154,62553.0,62552.0,0.12113161]
[1728453185479,0.26620854,62553.0,62552.0,0.12013161]
[1728453185714,0.62614534,62553.0,62552.0,0.12013161]
[1728453185912,0.46629948,62553.0,62552.0,0.12013161]
[1728453186116,0.46630027,62553.0,62552.0,0.12013161]
[1728453186721,0.62616427,62553.0,62552.0,0.12013161]
[1728453186914,0.46730027,62553.0,62552.0,0.12013161]
[1728453187382,0.46630027,62553.0,62552.0,0.12013161]
[1728453188558,0.62616427,62553.0,62552.0,0.12013161]
[1728453188773,0.46930027,62553.0,62552.0,0.12013161]
[1728453189021,0.62916427,62553.0,62552.0,0.12013161]
[1728453189215,0.50922409,62553.0,62552.0,0.12013161]
[1728453189494,0.43806926,62553.0,62545.0,0.2399712]
[1728453189750,0.11995309,62546.0,62545.0,0.2399712]
[1728453189949,0.33250199,62546.0,62545.0,0.36010281]
[1728453190194,0.34738534,62546.0,62545.0,0.36010281]
[1728453190397,0.46733832,62546.0,62545.0,0.36010281]
[1728453191540,0.46733832,62546.0,62545.0,0.36110281]
[1728453191765,0.34738534,62546.0,62545.0,0.36010281]
[1728453192013,0.34838534,62546.0,62545.0,0.36010281]
[1728453192247,0.35038534,62546.0,62545.0,0.12013161]
[1728453192733,0.44628824,62546.0,62545.0,0.12013161]
[1728453194737,0.5101316,62546.0,62545.0,0.12013161]
[1728453195011,0.60600444,62546.0,62545.0,0.12013161]
[1728453195671,0.44612244,62546.0,62545.0,0.12013161]
[1728453196174,0.60600444,62546.0,62545.0,0.12013161]
[1728453196404,0.33317879,62546.0,62545.0,0.12013161]
[1728453200427,0.42903615,62546.0,62545.0,0.12013161]
[1728453200637,0.51010302,62546.0,62545.0,0.12013161]
[1728453200869,0.33317879,62546.0,62545.0,0.12013161]
[1728453203552,0.17329679,62546.0,62545.0,0.12013161]
[1728453205158,0.33317879,62546.0,62545.0,0.12013161]
[1728453205631,0.17329679,62546.0,62545.0,0.12013161]
[1728453206082,0.01788335,62546.0,62545.0,0.37471561]
[1728453206309,0.01788335,62546.0,62545.0,0.45361561]
[1728453206529,0.01685414,62546.0,62545.0,0.45361561]
[1728453207444,0.003821,62546.0,62545.0,0.45361561]
[1728453207916,0.001821,62546.0,62545.0,0.45361561]
[1728453208362,0.001821,62546.0,62545.0,0.45561561]
[1728453208866,0.000821,62546.0,62545.0,0.45361561]
[1728453209076,0.000821,62546.0,62545.0,0.45861561]
[1728453209293,0.000821,62546.0,62545.0,0.46261561]
[1728453227881,0.01478453,62546.0,62545.0,0.46261561]
[1728453228098,0.0013056,62546.0,62545.0,0.1037]
[1728453228316,0.06318638,62546.0,62545.0,0.22383161]
[1728453228527,0.06318638,62546.0,62545.0,0.38371561]
[1728453228528,0.08714501,62546.0,62545.0,0.38371561]
[1728453228869,0.08666041,62546.0,62545.0,0.21883161]
[1728453229088,0.08666041,62546.0,62545.0,0.21483161]
[1728453229307,0.08666041,62546.0,62545.0,0.37471561]
[1728453229511,0.08666041,62546.0,62545.0,0.21483161]
[1728453229512,0.08866041,62546.0,62545.0,0.21483161]
[1728453229721,0.08966041,62546.0,62545.0,0.21483161]
[1728453229930,0.08766041,62546.0,62545.0,0.21483161]
[1728453230140,0.08766041,62546.0,62545.0,0.37471561]
[1728453230346,0.08966041,62546.0,62545.0,0.37471561]
[1728453230569,0.24954241,62546.0,62545.0,0.0947]
[1728453230795,0.29065687,62546.0,62545.0,0.21483161]
[1728453231206,0.29065687,62546.0,62545.0,0.37471561]
[1728453231522,0.19480741,62546.0,62545.0,0.21483161]
[1728453231748,0.29065687,62546.0,62545.0,0.21483161]
[1728453231963,0.01778453,62546.0,62545.0,0.21483161]
[1728453232176,0.08971794,62546.0,62545.0,0.21483161]
[1728453232810,0.01778453,62546.0,62545.0,0.21483161]
[1728453233023,0.08971831,62546.0,62545.0,0.21483161]
[1728453233263,0.01778453,62546.0,62545.0,0.21483161]
[1728453233481,0.08971831,62546.0,62545.0,0.21483161]
[1728453235482,0.08971831,62546.0,62545.0,0.37471561]
[1728453235736,0.08971831,62546.0,62545.0,0.21483161]
[1728453236851,0.01778453,62546.0,62545.0,0.21483161]
[1728453237969,0.08972714,62546.0,62545.0,0.21483161]
[1728453238442,0.24960914,62546.0,62545.0,0.21483161]
[1728453238662,0.35471297,62546.0,62545.0,0.21483161]
[1728453239152,0.45056243,62546.0,62545.0,0.21483161]
[1728453239624,0.45056243,62546.0,62545.0,0.12013161]
[1728453240073,0.45065301,62546.0,62545.0,0.12013161]
[1728453241113,0.45065301,62546.0,62542.0,0.159891]
[1728453241114,0.159897,62540.0,62539.0,0.001642]
[1728453241322,0.31731044,62540.0,62539.0,0.001642]
[1728453241528,0.50730922,62540.0,62539.0,0.001642]
[1728453241734,0.68690922,62540.0,62539.0,0.001642]
[1728453241943,0.76230922,62540.0,62539.0,0.001642]
[1728453242150,0.92219001,62540.0,62539.0,0.001642]
[1728453242387,0.76030922,62540.0,62539.0,0.002642]
[1728453242588,0.76130922,62540.0,62539.0,0.002642]
[1728453243001,0.76030922,62540.0,62539.0,0.001642]
[1728453243212,0.76030922,62540.0,62539.0,0.003642]
[1728453243213,0.77230922,62540.0,62539.0,0.003642]
[1728453243880,0.76130922,62540.0,62539.0,0.002642]
[1728453244075,0.78537435,62540.0,62539.0,0.001642]
[1728453244527,0.7740473,62540.0,62539.0,0.001642]
[1728453244760,0.7740473,62540.0,62539.0,0.04755068]
[1728453244761,0.62988975,62540.0,62539.0,0.04755068]
[1728453244994,0.52988975,62540.0,62539.0,0.001642]
[1728453245213,0.66260621,62540.0,62539.0,0.002642]
[1728453245454,0.66260621,62540.0,62539.0,0.003642]
[1728453245455,0.64064887,62540.0,62539.0,0.003642]
[1728453245922,0.64064887,62540.0,62539.0,0.002642]
[1728453245923,0.6273323,62540.0,62539.0,0.002642]
[1728453246150,0.6273323,62540.0,62539.0,0.003642]
[1728453246418,0.6383323,62540.0,62539.0,0.002642]
[1728453246644,0.6403323,62540.0,62539.0,0.002642]
[1728453246869,0.65030373,62540.0,62539.0,0.003642]
[1728453247080,0.65030373,62540.0,62539.0,0.002642]
[1728453247081,0.64830373,62540.0,62539.0,0.002642]
[1728453247296,0.6252386,62540.0,62539.0,0.003642]
[1728453248398,0.50649035,62540.0,62539.0,0.002642]
[1728453248622,0.51397495,62540.0,62539.0,0.002642]
[1728453249066,0.51597495,62540.0,62539.0,0.003642]
[1728453249530,0.3392521,62540.0,62539.0,0.003642]
[1728453251098,0.36431591,62540.0,62539.0,0.003642]
[1728453251333,0.43610236,62540.0,62539.0,0.003642]
[1728453251541,0.41103855,62540.0,62539.0,0.003642]
[1728453254054,0.41268055,62540.0,62539.0,0.003642]
[1728453254531,0.43774441,62540.0,62539.0,0.003642]
[1728453254758,0.41331731,62540.0,62539.0,0.003642]
[1728453254986,0.36547336,62540.0,62539.0,0.098542]
[1728453261408,0.38043636,62540.0,62539.0,0.098542]
[1728453265412,0.36547336,62540.0,62539.0,0.098542]
[1728453270686,0.36547336,62540.0,62539.0,0.098542]
[1728453272776,0.41334263,62540.0,62539.0,0.098542]
[1728453273481,0.41337126,62540.0,62539.0,0.098542]
[1728453275400,0.36547336,62540.0,62539.0,0.098542]
[1728453276006,0.63813,62540.0,62539.0,0.098542]
[1728453278578,0.54233419,62540.0,62539.0,0.098542]
[1728453279821,0.66207896,62540.0,62539.0,0.098542]
[1728453281206,0.54233419,62540.0,62539.0,0.098542]
[1728453282280,0.638212,62540.0,62539.0,0.098542]
[1728453282489,0.54233419,62540.0,62539.0,0.098542]
[1728453282695,0.66207896,62540.0,62539.0,0.098542]
[1728453283593,0.54233419,62540.0,62539.0,0.098542]
[1728453288449,0.54254674,62540.0,62539.0,0.098542]
[1728453290056,0.38264974,62540.0,62539.0,0.098542]
[1728453290492,0.54254674,62540.0,62539.0,0.098542]
[1728453290704,0.38264974,62540.0,62539.0,0.098542]
[1728453290934,0.54254674,62540.0,62539.0,0.098542]
[1728453291194,0.38264974,62540.0,62539.0,0.098542]
[1728453292034,0.38264974,62540.0,62539.0,0.177942]
[1728453293270,0.38275631,62540.0,62539.0,0.177942]
[1728453293843,0.22734287,62540.0,62539.0,0.337842]
[1728453296463,0.34735034,62540.0,62539.0,0.337842]
[1728453296676,0.34735035,62540.0,62539.0,0.337842]
[1728453296885,0.22734287,62540.0,62539.0,0.337842]
[1728453297243,0.17017039,62540.0,62539.0,0.337842]
[1728453297462,0.22734287,62540.0,62539.0,0.337842]
[1728453298094,0.22736752,62540.0,62539.0,0.337842]
[1728453301173,0.02509906,62540.0,62539.0,0.337842]
[1728453301663,0.012642,62540.0,62539.0,0.337842]
[1728453301969,0.003642,62540.0,62539.0,0.336842]
[1728453302345,0.001642,62540.0,62539.0,0.335842]
[1728453302548,0.011642,62540.0,62539.0,0.336842]
[1728453302790,0.013642,62540.0,62539.0,0.337842]
[1728453303016,0.013642,62540.0,62539.0,0.338842]
[1728453303266,0.013642,62540.0,62539.0,0.341842]
[1728453308091,0.013642,62540.0,62539.0,0.346842]
[1728453309300,0.000821,62546.0,62545.0,0.45051561]
[1728453310474,0.000821,62546.0,62545.0,0.45551561]
[1728453312250,0.000821,62546.0,62545.0,0.46351561]
[1728453312452,0.000821,62546.0,62545.0,0.47651561]
[1728453312756,0.000821,62546.0,62545.0,0.46851561]
[1728453312988,0.000821,62546.0,62545.0,0.48251561]
[1728453314496,0.000821,62555.0,62554.0,0.159861]
[1728453314710,0.000821,62555.0,62554.0,0.336461]
[1728453316246,0.000821,62555.0,62554.0,0.352461]
[1728453316951,0.000821,62555.0,62554.0,0.357461]
[1728453321385,0.000821,62555.0,62554.0,0.352461]
[1728453322311,0.000821,62555.0,62554.0,0.35660397]
[1728453324636,0.000821,62555.0,62554.0,0.352461]
[1728453324850,0.000821,62555.0,62554.0,0.47259261]
[1728453325798,0.02587545,62555.0,62554.0,0.47259261]
[1728453330378,0.000821,62555.0,62554.0,0.47259261]
[1728453331400,0.000821,62555.0,62554.0,9.47259261]
[1728453340196,0.0258754,62555.0,62554.0,9.47259261]
[1728453340401,0.000821,62555.0,62554.0,9.47259261]
[1728453344741,0.000821,62555.0,62554.0,9.46459261]
[1728453345185,0.000821,62555.0,62554.0,9.46559261]
[1728453345386,0.000821,62555.0,62554.0,9.47859261]
[1728453345622,0.000821,62555.0,62554.0,9.46959261]
[1728453346046,0.000821,62555.0,62554.0,9.48159261]
[1728453347079,0.0258747,62555.0,62554.0,9.48159261]
[1728453353477,0.000821,62558.0,62554.0,9.32173161]
[1728453353764,0.000821,62558.0,62557.0,0.44988561]
[1728453353980,0.000821,62558.0,62557.0,0.60529905]
[1728453355341,0.000821,62558.0,62557.0,0.61829905]
[1728453355605,0.000821,62558.0,62557.0,0.63129905]
[1728453355818,0.000821,62558.0,62557.0,0.61829905]
[1728453356057,0.000821,62558.0,62557.0,0.63229905]
[1728453356689,0.000821,62558.0,62557.0,0.61829905]
[1728453357116,0.000821,62558.0,62557.0,0.60529905]
[1728453357596,0.000821,62558.0,62557.0,0.61929905]
[1728453358010,0.000821,62558.0,62557.0,0.60529905]
[1728453358232,0.000821,62558.0,62557.0,0.63329905]
[1728453358685,0.000821,62558.0,62557.0,0.64729905]
[1728453359643,0.000821,62558.0,62557.0,0.61929905]
[1728453360003,0.000821,62558.0,62557.0,0.63329905]
[1728453360223,0.000821,62558.0,62557.0,0.61929905]
[1728453360627,0.000821,62558.0,62557.0,0.63529905]
[1728453361582,0.000821,62558.0,62557.0,0.63740638]
[1728453361946,8.111e-05,62560.0,62559.0,0.159849]
[1728453362078,8.111e-05,62560.0,62559.0,0.336049]
[1728453362320,0.000821,62566.0,62561.0,0.159843]
[1728453362558,0.000821,62566.0,62565.0,0.45086461]
[1728453364498,0.000821,62566.0,62565.0,0.46086461]
[1728453364723,0.000821,62566.0,62565.0,0.47186461]
[1728453366255,0.000821,62566.0,62565.0,0.47592082]
[1728453367149,0.000821,62567.0,62566.0,0.005]
[1728453367365,0.000821,62569.0,62568.0,0.340126]
[1728453367580,0.000821,62569.0,62568.0,0.46025761]
[1728453369335,0.000821,62569.0,62568.0,0.46925761]
[1728453370302,0.000821,62569.0,62568.0,0.47725761]
[1728453379394,0.06448427,62580.0,62577.0,0.159803]
[1728453379618,0.000821,62588.0,62569.0,0.1791]
[1728453379619,0.000821,62588.0,62585.0,0.159782]
[1728453379766,0.000821,62588.0,62587.0,0.159777]
[1728453380215,0.000821,62588.0,62587.0,0.4761482]
[1728453380420,0.000821,62588.0,62587.0,0.236177]
[1728453380884,0.000821,62588.0,62587.0,0.35630861]
[1728453381095,0.000821,62588.0,62587.0,0.236177]
[1728453381508,0.000821,62588.0,62587.0,0.35630861]
[1728453381723,0.000821,62588.0,62587.0,0.36330861]
[1728453382170,0.000821,62588.0,62587.0,0.37130861]
[1728453385818,0.000821,62588.0,62587.0,0.251177]
[1728453386065,0.000821,62588.0,62587.0,0.37130861]
[1728453398867,0.000821,62588.0,62587.0,0.47120861]
[1728453409113,0.000821,62588.0,62587.0,0.47620861]
[1728453412332,0.000821,62588.0,62587.0,0.63162205]
[1728453424077,0.000821,62588.0,62587.0,0.351077]
[1728453424313,0.000821,62588.0,62587.0,0.47620861]